[Event "*** Biggest EVER Titled Tuesday"]
[Site "Chess.com"]
[Date "2018.04.17"]
[Round "9"]
[White "ENEASZ"]
[Black "TastyFrenchFries"]
[Result "0-1"]
[WhiteElo "2455"]
[BlackElo "2358"]
[TimeControl "180+2"]
[EndTime "15:06:13 PDT"]
[Termination "TastyFrenchFries won by checkmate"]

1. e4 {[%clk 0:03:01.9]} 1... e6 {[%clk 0:03:01.9]} 2. d4 {[%clk 0:02:59.7]}
2... d5 {[%clk 0:03:03.8]} 3. Bd3 {[%clk 0:03:00.4]} 3... Nf6 {[%clk 0:03:00.5]}
4. Nd2 {[%clk 0:02:59.7]} 4... c5 {[%clk 0:03:00.2]} 5. exd5 {[%clk 0:02:58.8]}
5... Qxd5 {[%clk 0:02:57.2]} 6. Ngf3 {[%clk 0:02:58.7]} 6... cxd4 {[%clk
0:02:56.5]} 7. O-O {[%clk 0:02:59.5]} 7... Nc6 {[%clk 0:02:52.3]} 8. Qe2 {[%clk
0:02:59.4]} 8... Be7 {[%clk 0:02:50.8]} 9. Rd1 {[%clk 0:02:55.4]} 9... O-O
{[%clk 0:02:35.1]} 10. Ne4 {[%clk 0:02:56]} 10... Nxe4 {[%clk 0:02:01.6]} 11.
Bxe4 {[%clk 0:02:57.9]} 11... Qh5 {[%clk 0:01:58.4]} 12. Bxc6 {[%clk 0:02:58.1]}
12... bxc6 {[%clk 0:01:57.2]} 13. Nxd4 {[%clk 0:02:59.2]} 13... Qxe2 {[%clk
0:01:56.3]} 14. Nxe2 {[%clk 0:03:01.1]} 14... e5 {[%clk 0:01:56]} 15. b3 {[%clk
0:02:55.7]} 15... a5 {[%clk 0:01:53.6]} 16. Nc3 {[%clk 0:02:54.9]} 16... Bf5
{[%clk 0:01:50.5]} 17. Bb2 {[%clk 0:02:50.3]} 17... Bxc2 {[%clk 0:01:46.3]} 18.
Rdc1 {[%clk 0:02:51.2]} 18... Bd3 {[%clk 0:01:46.3]} 19. Nd1 {[%clk 0:02:34.4]}
19... f6 {[%clk 0:01:44.4]} 20. Rxc6 {[%clk 0:02:32.8]} 20... Rfd8 {[%clk
0:01:44.5]} 21. Ne3 {[%clk 0:02:28.7]} 21... a4 {[%clk 0:01:37.9]} 22. h3 {[%clk
0:02:12.7]} 22... Rdb8 {[%clk 0:01:28.9]} 23. Rc7 {[%clk 0:02:09.2]} 23... Bf8
{[%clk 0:01:26.8]} 24. Rd1 {[%clk 0:01:48.8]} 24... axb3 {[%clk 0:01:15.4]} 25.
Rxd3 {[%clk 0:01:46.1]} 25... bxa2 {[%clk 0:01:17.3]} 26. Ba1 {[%clk 0:01:47.2]}
26... Rb1+ {[%clk 0:01:14]} 27. Rd1 {[%clk 0:01:47.8]} 27... Rab8 {[%clk
0:01:06.9]} 28. Rcc1 {[%clk 0:01:29.3]} 28... Ba3 {[%clk 0:01:01.9]} 29. Rc2
{[%clk 0:01:07.4]} 29... Rxa1 {[%clk 0:00:51.4]} 30. Rxa1 {[%clk 0:01:01.9]}
30... Rb1+ {[%clk 0:00:52.2]} 31. Kh2 {[%clk 0:00:56.4]} 31... Rxa1 {[%clk
0:00:51.4]} 32. Kg3 {[%clk 0:00:57]} 32... g6 {[%clk 0:00:39.6]} 33. Nd5 {[%clk
0:00:53.4]} 33... f5 {[%clk 0:00:39.1]} 34. Nc3 {[%clk 0:00:48.6]} 34... Bd6
{[%clk 0:00:37.7]} 35. Rxa2 {[%clk 0:00:37.4]} 35... e4+ {[%clk 0:00:37]} 36.
Kh4 {[%clk 0:00:38.6]} 36... Rg1 {[%clk 0:00:33.8]} 37. g3 {[%clk 0:00:39.9]}
37... Be7# {[%clk 0:00:26]} 0-1

[Event "*** Biggest EVER Titled Tuesday"]
[Site "Chess.com"]
[Date "2018.04.17"]
[Round "9"]
[White "talento10"]
[Black "RojonR"]
[Result "0-1"]
[WhiteElo "2333"]
[BlackElo "2408"]
[TimeControl "180+2"]
[EndTime "15:06:16 PDT"]
[Termination "RojonR won by resignation"]

1. e4 {[%clk 0:03:01.9]} 1... c5 {[%clk 0:02:59]} 2. Nf3 {[%clk 0:03:02.6]} 2...
Nc6 {[%clk 0:02:55.1]} 3. d4 {[%clk 0:03:03.8]} 3... cxd4 {[%clk 0:02:55.4]} 4.
Nxd4 {[%clk 0:03:05.7]} 4... d5 {[%clk 0:02:55]} 5. Bb5 {[%clk 0:02:51.8]} 5...
dxe4 {[%clk 0:02:55.7]} 6. Nxc6 {[%clk 0:02:45.1]} 6... Qxd1+ {[%clk 0:02:56.1]}
7. Kxd1 {[%clk 0:02:47]} 7... a6 {[%clk 0:02:57.4]} 8. Nd4+ {[%clk 0:02:07.6]}
8... axb5 {[%clk 0:02:57.3]} 9. Nxb5 {[%clk 0:02:09.5]} 9... Bg4+ {[%clk
0:02:57]} 10. Ke1 {[%clk 0:02:07.9]} 10... Rc8 {[%clk 0:02:50.8]} 11. N1c3
{[%clk 0:02:04.8]} 11... f5 {[%clk 0:02:45.1]} 12. Bf4 {[%clk 0:02:05.3]} 12...
Nf6 {[%clk 0:02:36.2]} 13. h3 {[%clk 0:01:28.1]} 13... Bh5 {[%clk 0:02:34.5]}
14. Nc7+ {[%clk 0:01:18.8]} 14... Kf7 {[%clk 0:02:27.6]} 15. a3 {[%clk
0:00:50.2]} 15... e6 {[%clk 0:02:22]} 16. Rc1 {[%clk 0:00:42.7]} 16... Nd7
{[%clk 0:02:12.4]} 17. N7b5 {[%clk 0:00:41.7]} 17... e5 {[%clk 0:02:11]} 18. g4
{[%clk 0:00:30.9]} 18... exf4 {[%clk 0:01:59.4]} 19. gxh5 {[%clk 0:00:31]} 19...
Nf6 {[%clk 0:01:58.4]} 20. Nd4 {[%clk 0:00:26.3]} 20... Bxa3 {[%clk 0:01:47.1]}
21. bxa3 {[%clk 0:00:19.6]} 21... Rxc3 {[%clk 0:01:47.4]} 22. Nxf5 {[%clk
0:00:21.4]} 22... Rxa3 {[%clk 0:01:44.6]} 23. Rb1 {[%clk 0:00:21.3]} 23... Rb8
{[%clk 0:01:38.6]} 24. Ke2 {[%clk 0:00:18]} 24... f3+ {[%clk 0:01:26.9]} 25. Kd2
{[%clk 0:00:16.9]} 25... Rd8+ {[%clk 0:01:27.2]} 26. Kc1 {[%clk 0:00:16.4]}
26... b5 {[%clk 0:01:18.6]} 27. Rd1 {[%clk 0:00:15.2]} 27... Rxd1+ {[%clk
0:01:15.3]} 28. Kxd1 {[%clk 0:00:17.1]} 28... e3 {[%clk 0:00:52.3]} 29. Nxe3
{[%clk 0:00:16.6]} 29... Ne4 {[%clk 0:00:52]} 30. Ke1 {[%clk 0:00:15.3]} 30...
Rxe3+ {[%clk 0:00:51.9]} 31. fxe3 {[%clk 0:00:15.6]} 31... f2+ {[%clk 0:00:53]}
32. Ke2 {[%clk 0:00:16.2]} 32... Nc3+ {[%clk 0:00:54]} 33. Kxf2 {[%clk
0:00:16.4]} 33... Nxb1 {[%clk 0:00:55.5]} 34. Kf3 {[%clk 0:00:17.5]} 34... Na3
{[%clk 0:00:55.7]} 35. Ke4 {[%clk 0:00:19.4]} 35... Nxc2 {[%clk 0:00:56.3]} 36.
Kd5 {[%clk 0:00:19.6]} 36... Nxe3+ {[%clk 0:00:56.8]} 37. Kc5 {[%clk 0:00:21]}
37... Kf6 {[%clk 0:00:56.9]} 38. Kxb5 {[%clk 0:00:22.9]} 38... Kg5 {[%clk
0:00:57.8]} 0-1

[Event "*** Biggest EVER Titled Tuesday"]
[Site "Chess.com"]
[Date "2018.04.17"]
[Round "9"]
[White "TregubovP"]
[Black "Andreikka"]
[Result "0-1"]
[WhiteElo "2571"]
[BlackElo "2787"]
[TimeControl "180+2"]
[EndTime "15:06:18 PDT"]
[Termination "Andreikka won by resignation"]

1. d4 {[%clk 0:03:00.6]} 1... d5 {[%clk 0:03:00.3]} 2. c4 {[%clk 0:03:01.1]}
2... c6 {[%clk 0:03:01.8]} 3. cxd5 {[%clk 0:03:00.1]} 3... cxd5 {[%clk
0:03:02.9]} 4. Bf4 {[%clk 0:03:01.5]} 4... Nf6 {[%clk 0:03:01]} 5. e3 {[%clk
0:03:02.3]} 5... Nc6 {[%clk 0:03:01.7]} 6. Nc3 {[%clk 0:03:03.8]} 6... Bg4
{[%clk 0:03:00.8]} 7. Qb3 {[%clk 0:03:02.2]} 7... Na5 {[%clk 0:03:02]} 8. Qa4+
{[%clk 0:03:01.5]} 8... Bd7 {[%clk 0:03:03.4]} 9. Qc2 {[%clk 0:03:02.1]} 9...
Rc8 {[%clk 0:03:04.9]} 10. Bd3 {[%clk 0:02:59.8]} 10... e6 {[%clk 0:03:05.6]}
11. Nf3 {[%clk 0:02:59]} 11... b5 {[%clk 0:03:04.9]} 12. a3 {[%clk 0:02:55.5]}
12... a6 {[%clk 0:03:02.7]} 13. O-O {[%clk 0:02:55.2]} 13... Be7 {[%clk
0:03:04.1]} 14. Qe2 {[%clk 0:02:47.6]} 14... O-O {[%clk 0:03:04.2]} 15. Ne5
{[%clk 0:02:46.4]} 15... Nc4 {[%clk 0:03:00.2]} 16. Rfc1 {[%clk 0:02:43.6]}
16... Qb6 {[%clk 0:02:57.9]} 17. a4 {[%clk 0:02:39.9]} 17... b4 {[%clk
0:02:38.9]} 18. a5 {[%clk 0:02:36.3]} 18... Qb7 {[%clk 0:02:33.5]} 19. Nxd7
{[%clk 0:02:28.1]} 19... Nxd7 {[%clk 0:02:26.9]} 20. Na4 {[%clk 0:02:28.8]}
20... b3 {[%clk 0:02:10.7]} 21. Bxc4 {[%clk 0:02:02.6]} 21... dxc4 {[%clk
0:02:10.2]} 22. Rxc4 {[%clk 0:02:01.3]} 22... Rxc4 {[%clk 0:01:50]} 23. Qxc4
{[%clk 0:02:01.4]} 23... Rc8 {[%clk 0:01:51.6]} 24. Qd3 {[%clk 0:01:57.9]} 24...
Rc2 {[%clk 0:01:53.1]} 25. h3 {[%clk 0:01:48.1]} 25... h6 {[%clk 0:01:53.1]} 26.
e4 {[%clk 0:01:45.4]} 26... Bf6 {[%clk 0:01:34.3]} 27. Rc1 {[%clk 0:01:10.3]}
27... Qc6 {[%clk 0:01:24.7]} 28. Nc3 {[%clk 0:01:04.2]} 28... Rxb2 {[%clk
0:01:20]} 29. d5 {[%clk 0:01:04.6]} 29... exd5 {[%clk 0:01:20.2]} 30. Nxd5
{[%clk 0:01:04.4]} 30... Rc2 {[%clk 0:01:21]} 31. Rb1 {[%clk 0:00:46.3]} 31...
b2 {[%clk 0:01:10.2]} 32. Kh2 {[%clk 0:00:45.4]} 32... Rxf2 {[%clk 0:01:02.7]}
33. Bg3 {[%clk 0:00:43.4]} 33... Qc2 {[%clk 0:00:46.6]} 34. Qxa6 {[%clk
0:00:19.1]} 34... Rxg2+ {[%clk 0:00:41.9]} 0-1

[Event "*** Biggest EVER Titled Tuesday"]
[Site "Chess.com"]
[Date "2018.04.17"]
[Round "9"]
[White "GameOverBro"]
[Black "Blitzstream"]
[Result "0-1"]
[WhiteElo "2442"]
[BlackElo "2468"]
[TimeControl "180+2"]
[EndTime "15:06:21 PDT"]
[Termination "Blitzstream won by resignation"]

1. e4 {[%clk 0:03:01.9]} 1... d5 {[%clk 0:03:00.8]} 2. exd5 {[%clk 0:03:02.3]}
2... Qxd5 {[%clk 0:03:02.1]} 3. Nc3 {[%clk 0:03:03.2]} 3... Qa5 {[%clk
0:03:03.1]} 4. Nf3 {[%clk 0:03:03.6]} 4... Nf6 {[%clk 0:03:04.4]} 5. d4 {[%clk
0:03:04.6]} 5... c6 {[%clk 0:03:04.7]} 6. Ne5 {[%clk 0:02:59.8]} 6... Be6 {[%clk
0:03:05.1]} 7. Bc4 {[%clk 0:02:57.3]} 7... Bxc4 {[%clk 0:03:05.2]} 8. Nxc4
{[%clk 0:02:58.2]} 8... Qc7 {[%clk 0:02:58.1]} 9. Qf3 {[%clk 0:02:53.1]} 9... e6
{[%clk 0:02:37]} 10. Bf4 {[%clk 0:02:48.7]} 10... Qd8 {[%clk 0:02:37.3]} 11.
O-O-O {[%clk 0:02:44.3]} 11... Be7 {[%clk 0:02:37.3]} 12. h4 {[%clk 0:02:36.6]}
12... Nd5 {[%clk 0:02:37.4]} 13. Be5 {[%clk 0:02:34]} 13... O-O {[%clk
0:02:08.3]} 14. Ne4 {[%clk 0:02:27.3]} 14... Nd7 {[%clk 0:02:01.1]} 15. Qg3
{[%clk 0:01:54.5]} 15... Nxe5 {[%clk 0:01:47.3]} 16. dxe5 {[%clk 0:01:54.6]}
16... Qc7 {[%clk 0:01:42.2]} 17. Ncd6 {[%clk 0:01:49.9]} 17... Rfd8 {[%clk
0:01:25.5]} 18. c4 {[%clk 0:01:42]} 18... Nb4 {[%clk 0:01:18.9]} 19. Nf6+ {[%clk
0:01:33.2]} 19... Bxf6 {[%clk 0:01:02.7]} 20. exf6 {[%clk 0:01:33.5]} 20... g6
{[%clk 0:01:03.5]} 21. Qg5 {[%clk 0:01:05.1]} 21... Kh8 {[%clk 0:00:35.4]} 22.
Qh6 {[%clk 0:00:57.5]} 22... Rg8 {[%clk 0:00:36.3]} 23. g4 {[%clk 0:00:47]}
23... Rad8 {[%clk 0:00:30.3]} 24. c5 {[%clk 0:00:38.8]} 24... Rd7 {[%clk
0:00:28.3]} 25. g5 {[%clk 0:00:37.5]} 25... Qa5 {[%clk 0:00:28.9]} 26. h5 {[%clk
0:00:20.5]} 26... Qxc5+ {[%clk 0:00:27.2]} 27. Kb1 {[%clk 0:00:16.2]} 27... Rxd6
{[%clk 0:00:25.7]} 28. Rxd6 {[%clk 0:00:15.4]} 28... Qxd6 {[%clk 0:00:27.6]} 29.
a3 {[%clk 0:00:12.1]} 29... Qd3+ {[%clk 0:00:26.6]} 30. Ka1 {[%clk 0:00:13.4]}
30... Nc2+ {[%clk 0:00:27]} 31. Ka2 {[%clk 0:00:13.8]} 31... Qd5+ {[%clk
0:00:26.9]} 32. Kb1 {[%clk 0:00:14.8]} 32... Qxh1+ {[%clk 0:00:28]} 0-1

[Event "*** Biggest EVER Titled Tuesday"]
[Site "Chess.com"]
[Date "2018.04.17"]
[Round "9"]
[White "GeorgMeier"]
[Black "IMRosen"]
[Result "1-0"]
[WhiteElo "2754"]
[BlackElo "2405"]
[TimeControl "180+2"]
[EndTime "15:06:25 PDT"]
[Termination "GeorgMeier won by checkmate"]

1. d4 {[%clk 0:03:01.9]} 1... Nf6 {[%clk 0:02:55.5]} 2. Nf3 {[%clk 0:03:03.8]}
2... d5 {[%clk 0:02:55.1]} 3. c4 {[%clk 0:03:03.1]} 3... e6 {[%clk 0:02:56.1]}
4. g3 {[%clk 0:03:04.6]} 4... dxc4 {[%clk 0:02:56.6]} 5. Bg2 {[%clk 0:03:05.1]}
5... Bb4+ {[%clk 0:02:58]} 6. Bd2 {[%clk 0:03:06.1]} 6... c5 {[%clk 0:02:59.5]}
7. Qc1 {[%clk 0:02:59.9]} 7... O-O {[%clk 0:02:53.7]} 8. O-O {[%clk 0:02:54.1]}
8... Nbd7 {[%clk 0:02:36.2]} 9. Bxb4 {[%clk 0:02:51.8]} 9... cxb4 {[%clk
0:02:38.1]} 10. Qxc4 {[%clk 0:02:53.2]} 10... a5 {[%clk 0:02:37.1]} 11. Nbd2
{[%clk 0:02:53.6]} 11... b6 {[%clk 0:02:29.3]} 12. Rfe1 {[%clk 0:02:35.5]} 12...
Ba6 {[%clk 0:02:29.3]} 13. Qb3 {[%clk 0:02:36.4]} 13... Rc8 {[%clk 0:02:29]} 14.
Bf1 {[%clk 0:02:33.2]} 14... Qc7 {[%clk 0:02:22.1]} 15. a3 {[%clk 0:02:12.8]}
15... bxa3 {[%clk 0:02:17.4]} 16. bxa3 {[%clk 0:02:13.8]} 16... Qc2 {[%clk
0:02:15.1]} 17. Qxc2 {[%clk 0:01:42.6]} 17... Rxc2 {[%clk 0:02:17]} 18. Red1
{[%clk 0:01:35.2]} 18... Rfc8 {[%clk 0:01:55]} 19. e3 {[%clk 0:01:35.2]} 19...
Bxf1 {[%clk 0:01:46]} 20. Kxf1 {[%clk 0:01:37.1]} 20... Rb2 {[%clk 0:01:34.5]}
21. Ne1 {[%clk 0:01:33]} 21... Rc3 {[%clk 0:01:26.9]} 22. a4 {[%clk 0:01:18.3]}
22... Kf8 {[%clk 0:01:24.4]} 23. Nb1 {[%clk 0:01:01.9]} 23... Rc7 {[%clk
0:00:53.8]} 24. Nd3 {[%clk 0:00:47.7]} 24... Rbc2 {[%clk 0:00:54.3]} 25. Na3
{[%clk 0:00:47.6]} 25... R2c6 {[%clk 0:00:51.2]} 26. Nb5 {[%clk 0:00:47.8]}
26... Rb7 {[%clk 0:00:52.1]} 27. Rac1 {[%clk 0:00:48.4]} 27... Rxc1 {[%clk
0:00:48]} 28. Rxc1 {[%clk 0:00:50.3]} 28... Rb8 {[%clk 0:00:47.4]} 29. Rc7
{[%clk 0:00:49.8]} 29... Ke7 {[%clk 0:00:47.7]} 30. Ne5 {[%clk 0:00:50.6]} 30...
Ke8 {[%clk 0:00:30.9]} 31. Nc6 {[%clk 0:00:48.5]} 31... Ra8 {[%clk 0:00:21.4]}
32. Rb7 {[%clk 0:00:49.4]} 32... Kf8 {[%clk 0:00:10.4]} 33. Nd6 {[%clk
0:00:50.5]} 33... h5 {[%clk 0:00:06.4]} 34. e4 {[%clk 0:00:51.7]} 34... e5
{[%clk 0:00:04]} 35. dxe5 {[%clk 0:00:50.7]} 35... Nc5 {[%clk 0:00:05.6]} 36.
Rxf7+ {[%clk 0:00:50.9]} 36... Kg8 {[%clk 0:00:05.4]} 37. exf6 {[%clk
0:00:52.1]} 37... Nxe4 {[%clk 0:00:06.1]} 38. Rxg7+ {[%clk 0:00:52.8]} 38... Kh8
{[%clk 0:00:07.6]} 39. Nf7# {[%clk 0:00:53.6]} 1-0

[Event "*** Biggest EVER Titled Tuesday"]
[Site "Chess.com"]
[Date "2018.04.17"]
[Round "9"]
[White "GMMatamoros"]
[Black "jcibarra"]
[Result "0-1"]
[WhiteElo "2502"]
[BlackElo "2607"]
[TimeControl "180+2"]
[EndTime "15:06:30 PDT"]
[Termination "jcibarra won by resignation"]

1. Nf3 {[%clk 0:03:00.8]} 1... e6 {[%clk 0:02:56.2]} 2. c4 {[%clk 0:02:51.4]}
2... g5 {[%clk 0:02:55.2]} 3. e3 {[%clk 0:02:44.8]} 3... g4 {[%clk 0:02:43.2]}
4. Ne5 {[%clk 0:02:43.6]} 4... d6 {[%clk 0:02:36.9]} 5. Nd3 {[%clk 0:02:38.1]}
5... h5 {[%clk 0:02:27.9]} 6. b3 {[%clk 0:02:34.7]} 6... Bg7 {[%clk 0:02:26.8]}
7. Bb2 {[%clk 0:02:35.9]} 7... Nf6 {[%clk 0:02:19.6]} 8. Nc3 {[%clk 0:02:34.7]}
8... e5 {[%clk 0:02:13.3]} 9. f3 {[%clk 0:02:33]} 9... Nc6 {[%clk 0:02:03.5]}
10. Nf2 {[%clk 0:02:26.3]} 10... Be6 {[%clk 0:01:52.6]} 11. a3 {[%clk
0:02:23.7]} 11... Qd7 {[%clk 0:01:46.3]} 12. b4 {[%clk 0:02:24.2]} 12... O-O-O
{[%clk 0:01:29.3]} 13. Qa4 {[%clk 0:02:14.9]} 13... Kb8 {[%clk 0:01:29.9]} 14.
O-O-O {[%clk 0:02:15.5]} 14... d5 {[%clk 0:01:27.5]} 15. cxd5 {[%clk 0:02:12]}
15... Nxd5 {[%clk 0:01:29.4]} 16. Nce4 {[%clk 0:02:07.9]} 16... b6 {[%clk
0:01:01.7]} 17. Bb5 {[%clk 0:02:04.9]} 17... Nde7 {[%clk 0:01:03.1]} 18. d4
{[%clk 0:01:49.5]} 18... exd4 {[%clk 0:01:02.5]} 19. Bxd4 {[%clk 0:01:47.2]}
19... Bxd4 {[%clk 0:00:47.7]} 20. Rxd4 {[%clk 0:01:49.1]} 20... Bd5 {[%clk
0:00:33.7]} 21. Nf6 {[%clk 0:01:41.8]} 21... Qe6 {[%clk 0:00:32.7]} 22. Nxd5
{[%clk 0:01:26.6]} 22... Nxd4 {[%clk 0:00:33]} 23. Nxc7 {[%clk 0:00:36]} 23...
Qxe3+ {[%clk 0:00:31.9]} 24. Kb1 {[%clk 0:00:35.4]} 24... Qxf2 {[%clk
0:00:21.5]} 25. Na6+ {[%clk 0:00:20.7]} 25... Kb7 {[%clk 0:00:22.5]} 26. Rc1
{[%clk 0:00:21.2]} 26... Rc8 {[%clk 0:00:23.1]} 27. Nc5+ {[%clk 0:00:22.2]}
27... bxc5 {[%clk 0:00:23.2]} 28. Ba6+ {[%clk 0:00:23.5]} 28... Kb8 {[%clk
0:00:20.4]} 29. bxc5 {[%clk 0:00:19.9]} 29... Ka8 {[%clk 0:00:17.6]} 30. Ka1
{[%clk 0:00:19.9]} 30... Rb8 {[%clk 0:00:16.8]} 0-1

[Event "*** Biggest EVER Titled Tuesday"]
[Site "Chess.com"]
[Date "2018.04.17"]
[Round "9"]
[White "Manukyan_Artak"]
[Black "Ginger_GM"]
[Result "0-1"]
[WhiteElo "2348"]
[BlackElo "2442"]
[TimeControl "180+2"]
[EndTime "15:06:30 PDT"]
[Termination "Ginger_GM won by resignation"]

1. e4 {[%clk 0:03:01.9]} 1... c5 {[%clk 0:02:59.2]} 2. Nf3 {[%clk 0:03:02.6]}
2... d6 {[%clk 0:02:57.9]} 3. Bb5+ {[%clk 0:03:03]} 3... Nc6 {[%clk 0:02:57.5]}
4. O-O {[%clk 0:03:03.3]} 4... Bd7 {[%clk 0:02:58]} 5. c3 {[%clk 0:02:59.2]}
5... Nf6 {[%clk 0:02:57]} 6. Re1 {[%clk 0:02:59.6]} 6... a6 {[%clk 0:02:57.3]}
7. Bxc6 {[%clk 0:02:57.1]} 7... Bxc6 {[%clk 0:02:57.6]} 8. e5 {[%clk 0:02:58.4]}
8... dxe5 {[%clk 0:02:55.8]} 9. Nxe5 {[%clk 0:02:59.6]} 9... Qc7 {[%clk
0:02:56.9]} 10. d4 {[%clk 0:02:57.3]} 10... cxd4 {[%clk 0:02:50.8]} 11. cxd4
{[%clk 0:02:58.5]} 11... e6 {[%clk 0:02:49.8]} 12. Bg5 {[%clk 0:02:32.5]} 12...
Be7 {[%clk 0:02:49.1]} 13. Nc3 {[%clk 0:02:29.7]} 13... Rd8 {[%clk 0:02:44.2]}
14. Rc1 {[%clk 0:02:14.6]} 14... O-O {[%clk 0:02:41.8]} 15. Nxc6 {[%clk
0:01:52.5]} 15... Qxc6 {[%clk 0:02:34.1]} 16. d5 {[%clk 0:01:33.3]} 16... Qb6
{[%clk 0:01:52.2]} 17. Qf3 {[%clk 0:01:11.6]} 17... Qxb2 {[%clk 0:01:30.5]} 18.
dxe6 {[%clk 0:01:10.2]} 18... fxe6 {[%clk 0:01:30.2]} 19. Rb1 {[%clk 0:00:41.4]}
19... Qa3 {[%clk 0:01:24.6]} 20. Rb3 {[%clk 0:00:30.8]} 20... Qc5 {[%clk
0:01:22.4]} 21. Qxb7 {[%clk 0:00:31.1]} 21... Rd7 {[%clk 0:01:00.8]} 22. Qxa6
{[%clk 0:00:28.7]} 22... Qxg5 {[%clk 0:00:54.9]} 23. Qxe6+ {[%clk 0:00:29.1]}
23... Kh8 {[%clk 0:00:55.2]} 24. h3 {[%clk 0:00:27.7]} 24... Bc5 {[%clk
0:00:44.7]} 25. Rf1 {[%clk 0:00:21.7]} 25... Rd2 {[%clk 0:00:39.1]} 26. Nd1
{[%clk 0:00:20.6]} 26... h5 {[%clk 0:00:35.9]} 27. Kh1 {[%clk 0:00:18.6]} 27...
Rfd8 {[%clk 0:00:33.9]} 28. Rb1 {[%clk 0:00:17.8]} 28... Qg6 {[%clk 0:00:31]}
29. Ne3 {[%clk 0:00:15]} 29... Bxe3 {[%clk 0:00:30]} 30. Qxe3 {[%clk 0:00:16.2]}
30... Ne4 {[%clk 0:00:26.4]} 31. a4 {[%clk 0:00:15.4]} 31... Nxf2+ {[%clk
0:00:26.8]} 32. Rxf2 {[%clk 0:00:15.7]} 32... Qxb1+ {[%clk 0:00:26.5]} 33. Kh2
{[%clk 0:00:16]} 33... Rxf2 {[%clk 0:00:27.5]} 34. Qxf2 {[%clk 0:00:17.7]} 34...
Qb8+ {[%clk 0:00:28.3]} 35. Qg3 {[%clk 0:00:18]} 35... Qxg3+ {[%clk 0:00:28.5]}
36. Kxg3 {[%clk 0:00:19.9]} 0-1

[Event "*** Biggest EVER Titled Tuesday"]
[Site "Chess.com"]
[Date "2018.04.17"]
[Round "9"]
[White "Nutflush"]
[Black "Cocaino74"]
[Result "0-1"]
[WhiteElo "2026"]
[BlackElo "2166"]
[TimeControl "180+2"]
[EndTime "15:06:31 PDT"]
[Termination "Cocaino74 won by checkmate"]

1. e4 {[%clk 0:03:01.9]} 1... c5 {[%clk 0:03:00.7]} 2. c3 {[%clk 0:03:02.4]}
2... Nf6 {[%clk 0:03:00.5]} 3. e5 {[%clk 0:03:03.5]} 3... Nd5 {[%clk 0:03:02]}
4. d4 {[%clk 0:03:04.9]} 4... cxd4 {[%clk 0:03:03.9]} 5. cxd4 {[%clk 0:03:06.3]}
5... d6 {[%clk 0:03:04.4]} 6. Nf3 {[%clk 0:03:07.8]} 6... Nc6 {[%clk 0:03:05.6]}
7. Bc4 {[%clk 0:03:08.8]} 7... Nb6 {[%clk 0:03:07]} 8. Bb3 {[%clk 0:03:09.2]}
8... dxe5 {[%clk 0:03:05.8]} 9. d5 {[%clk 0:03:10]} 9... Na5 {[%clk 0:03:07.1]}
10. Nc3 {[%clk 0:03:11.1]} 10... g6 {[%clk 0:02:57.6]} 11. Be3 {[%clk
0:03:06.6]} 11... Nxb3 {[%clk 0:02:43.8]} 12. Qxb3 {[%clk 0:03:06.3]} 12... Bg7
{[%clk 0:02:45.1]} 13. O-O {[%clk 0:02:47.7]} 13... O-O {[%clk 0:02:45.2]} 14.
Rfe1 {[%clk 0:02:44.8]} 14... Nd7 {[%clk 0:01:57.1]} 15. Rad1 {[%clk 0:02:39.8]}
15... b6 {[%clk 0:01:55.5]} 16. d6 {[%clk 0:02:33.3]} 16... exd6 {[%clk
0:01:50.9]} 17. Rxd6 {[%clk 0:02:33]} 17... Qe7 {[%clk 0:01:46.9]} 18. Red1
{[%clk 0:02:29.4]} 18... e4 {[%clk 0:01:28.9]} 19. Bg5 {[%clk 0:02:11.5]} 19...
Qe8 {[%clk 0:01:05.6]} 20. Nd2 {[%clk 0:01:46.3]} 20... Nc5 {[%clk 0:00:52.1]}
21. Qc2 {[%clk 0:01:18.1]} 21... Bf5 {[%clk 0:00:20.9]} 22. Be3 {[%clk
0:01:15.5]} 22... Rc8 {[%clk 0:00:12.1]} 23. Qb1 {[%clk 0:01:01.5]} 23... Be5
{[%clk 0:00:09.2]} 24. Rd5 {[%clk 0:00:57.4]} 24... Bb8 {[%clk 0:00:05.4]} 25.
Rxf5 {[%clk 0:00:48.6]} 25... gxf5 {[%clk 0:00:06.2]} 26. Bh6 {[%clk 0:00:46]}
26... Qe5 {[%clk 0:00:04.9]} 27. g3 {[%clk 0:00:47.5]} 27... Rfd8 {[%clk
0:00:05.1]} 28. Nf1 {[%clk 0:00:46.9]} 28... Nd3 {[%clk 0:00:04.7]} 29. Ne3
{[%clk 0:00:45.6]} 29... Qf6 {[%clk 0:00:04.9]} 30. Bf4 {[%clk 0:00:43]} 30...
Bxf4 {[%clk 0:00:03.6]} 31. gxf4 {[%clk 0:00:44.9]} 31... Nxf4 {[%clk
0:00:04.3]} 32. Rxd8+ {[%clk 0:00:44]} 32... Rxd8 {[%clk 0:00:06.2]} 33. Qc2
{[%clk 0:00:41.1]} 33... Qg6+ {[%clk 0:00:06.1]} 34. Kh1 {[%clk 0:00:39.1]}
34... Nh3 {[%clk 0:00:06.3]} 35. Ncd5 {[%clk 0:00:37.7]} 35... Qg1# {[%clk
0:00:06.6]} 0-1